bitfinex/quotes_BTCUSD_20260308
["timestamp","ask_amount","ask_price","bid_price","bid_amount"]
[1772977758335,0.18164806,67172.0,67161.0,0.00152]
[1772977758516,0.005,67170.0,67161.0,0.00152]
[1772977758732,0.18164806,67169.0,67162.0,0.00152]
[1772977758941,0.18164806,67169.0,67158.0,0.07468572]
[1772977758942,0.005,67168.0,67158.0,0.07468572]
[1772977759152,0.005,67167.0,67158.0,0.0002352]
[1772977759366,0.005,67167.0,67159.0,0.00152]
[1772977760236,0.18164806,67171.0,67159.0,0.00152]
[1772977760411,0.005,67168.0,67160.0,0.07444907]
[1772977760611,0.005,67168.0,67159.0,0.07596968]
[1772977761186,0.0744358,67172.0,67159.0,0.07596968]
[1772977761385,0.07443466,67173.0,67159.0,0.07596968]
[1772977761608,0.07943466,67173.0,67159.0,0.07596968]
[1772977761914,0.18164806,67170.0,67159.0,0.00152]
[1772977762123,0.18664806,67169.0,67159.0,0.00152]
[1772977762319,0.07444353,67165.0,67160.0,0.00152]
[1772977762563,0.005,67164.0,67161.0,0.00152]
[1772977762986,0.005,67164.0,67158.0,0.0002352]
[1772977763192,0.005,67164.0,67123.0,0.3578977]
[1772977763193,0.18164806,67164.0,67149.0,0.07446066]
[1772977763410,0.07444353,67165.0,67153.0,0.00152]
[1772977763411,0.005,67161.0,67153.0,0.00152]
[1772977763985,0.07444103,67168.0,67154.0,0.19235972]
[1772977764200,0.07444103,67168.0,67154.0,0.19275781]
[1772977764366,0.0744391,67169.0,67155.0,0.07445461]
[1772977764570,0.005,67168.0,67154.0,0.07485338]
[1772977764772,0.005,67166.0,67155.0,0.00152]
[1772977764974,0.005,67166.0,67150.0,0.07485981]
[1772977764975,0.18164806,67163.0,67150.0,0.07485981]
[1772977765184,0.005,67160.0,67150.0,0.07485981]
[1772977765403,0.005,67160.0,67151.0,0.00152]
[1772977765794,0.005,67160.0,67150.0,0.07485981]
[1772977765795,0.005,67160.0,67150.0,0.0004]
[1772977765992,0.005,67160.0,67152.0,0.00152]
[1772977766348,0.005,67160.0,67153.0,0.00152]
[1772977766646,0.005,67158.0,67153.0,0.00152]
[1772977766826,0.005,67158.0,67146.0,0.07446452]
[1772977766827,0.005,67156.0,67146.0,0.00152]
[1772977767043,0.18164806,67153.0,67143.0,0.00152]
[1772977767173,0.005,67150.0,67142.0,0.00152]
[1772977767380,0.00152,67158.0,67142.0,0.00152]
[1772977767599,0.07445018,67159.0,67142.0,0.00152]
[1772977767600,0.005,67157.0,67142.0,0.00152]
[1772977767804,0.005,67157.0,67143.0,0.00152]
[1772977768001,0.005,67155.0,67139.0,0.07481852]
[1772977768529,0.07445572,67154.0,67141.0,0.07447014]
[1772977768828,0.005,67151.0,67141.0,0.07447014]
[1772977769052,0.005,67150.0,67142.0,0.00152]
[1772977770752,0.07446127,67149.0,67142.0,0.00152]
[1772977771300,0.07446127,67149.0,67142.0,0.07598889]
[1772977771708,0.07946127,67150.0,67142.0,0.07598889]
[1772977772183,0.07946127,67150.0,67142.0,0.00152]
[1772977772411,0.07446127,67150.0,67142.0,0.00152]
[1772977772682,0.005,67149.0,67142.0,0.00152]
[1772977773065,0.07446238,67148.0,67142.0,0.0759889]
[1772977773406,0.07446238,67148.0,67142.0,0.00152]
[1772977773747,0.07445913,67151.0,67142.0,0.07598857]
[1772977773980,0.00420168,67468.0,67142.0,0.00152]
[1772977773981,0.005,67158.0,67142.0,0.00152]
[1772977774317,0.00152,67159.0,67142.0,0.00152]
[1772977774318,0.005,67154.0,67142.0,0.00152]
[1772977774542,0.005,67152.0,67143.0,0.00152]
[1772977774858,0.005,67152.0,67141.0,0.07446986]
[1772977775114,0.07945905,67151.0,67142.0,0.07598855]
[1772977775263,0.07945905,67151.0,67142.0,0.07598858]
[1772977775459,0.07945905,67151.0,67143.0,0.00152]
[1772977776290,0.005,67150.0,67143.0,0.00152]
[1772977776466,0.07445193,67158.0,67143.0,0.00152]
[1772977776467,0.005,67157.0,67143.0,0.00152]
[1772977776720,0.00022001,67168.0,67144.0,0.18955108]
[1772977776874,1e-08,67166.0,67143.0,0.00152]
[1772977777240,0.00022001,67182.0,67150.0,0.0004]
[1772977777399,0.00022001,67182.0,67154.0,0.18955108]
[1772977777602,0.00022001,67182.0,67151.0,0.18955108]
[1772977777603,0.19416766,67179.0,67151.0,0.18955108]
[1772977777916,0.00022001,67182.0,67150.0,0.00079752]
[1772977777917,0.005,67176.0,67155.0,0.19107108]
[1772977778120,0.005,67176.0,67155.0,0.18955108]
[1772977778284,0.005,67176.0,67156.0,0.19107108]
[1772977778687,0.005,67176.0,67157.0,0.00152]
[1772977778986,0.005,67176.0,67158.0,0.00152]
[1772977779193,0.005,67176.0,67159.0,0.07445018]
[1772977779194,0.07943245,67175.0,67159.0,0.07445018]
[1772977779378,0.07943245,67175.0,67160.0,0.00152]
[1772977779379,0.005,67174.0,67160.0,0.00152]
[1772977780004,0.0744258,67181.0,67160.0,0.00152]
[1772977780217,0.0794258,67181.0,67161.0,0.18955108]
[1772977780581,0.005,67180.0,67161.0,0.18955108]
[1772977781146,0.07443356,67174.0,67162.0,0.00152]
[1772977781302,0.07443356,67174.0,67151.0,0.07445905]
[1772977781303,0.19416766,67171.0,67163.0,0.00152]
[1772977781523,0.005,67168.0,67163.0,0.00152]
[1772977781720,0.07443356,67176.0,67163.0,0.00152]
[1772977782769,0.005,67175.0,67163.0,0.00152]
[1772977783251,0.07443356,67174.0,67158.0,0.07445029]
[1772977783461,0.19416766,67171.0,67159.0,0.00152]
[1772977783661,0.005,67169.0,67159.0,0.00152]
[1772977784346,0.005,67168.0,67160.0,0.00152]
[1772977784551,0.005,67167.0,67161.0,0.00152]
[1772977784697,0.005,67167.0,67153.0,0.07445599]
[1772977784897,0.005,67167.0,67154.0,0.00152]
[1772977785310,0.005,67165.0,67155.0,0.07445461]
[1772977785735,0.07444242,67166.0,67155.0,0.07445461]
[1772977786908,0.07944242,67166.0,67155.0,0.07445461]
[1772977787227,0.07444242,67166.0,67155.0,0.07445461]
[1772977787628,0.005,67165.0,67155.0,0.07445461]
[1772977787835,0.07444242,67166.0,67155.0,0.07445461]
[1772977788065,0.07465155,67176.0,67155.0,0.07445461]
[1772977788282,0.005,67173.0,67156.0,0.18955108]
[1772977789312,0.07465226,67176.0,67157.0,0.0744524]
[1772977789541,0.07965226,67176.0,67158.0,0.18955108]
[1772977790402,0.005,67175.0,67158.0,0.18955108]
[1772977791319,0.07465226,67176.0,67158.0,0.18955108]
[1772977791747,0.07465226,67176.0,67159.0,0.26400126]
[1772977792002,0.07965226,67176.0,67160.0,0.00152]
[1772977792198,0.07965226,67176.0,67160.0,0.19107108]
[1772977793985,0.07965226,67176.0,67161.0,0.07444796]
[1772977794124,0.07465226,67176.0,67161.0,0.07444796]
[1772977794336,0.19416766,67174.0,67161.0,0.07444796]
[1772977794545,0.005,67173.0,67161.0,0.07444796]
[1772977796204,0.005,67171.0,67161.0,0.07444796]
[1772977796427,0.005,67171.0,67162.0,0.00152]
[1772977796898,0.005,67171.0,67161.0,0.07444796]
[1772977797112,0.005,67171.0,67163.0,0.00152]
[1772977797376,0.005,67171.0,67158.0,0.07444907]
[1772977797588,0.005,67167.0,67155.0,0.07445355]
[1772977797806,0.005,67167.0,67156.0,0.00152]
[1772977798030,0.005,67165.0,67157.0,0.00152]
[1772977798265,0.07444464,67164.0,67157.0,0.07597195]
[1772977798707,0.07444464,67164.0,67157.0,0.07445195]
[1772977798919,0.07444464,67164.0,67158.0,0.00152]
[1772977799131,0.07444464,67164.0,67157.0,0.07445195]
[1772977799132,0.07444464,67164.0,67159.0,0.00152]
[1772977799585,0.07444464,67164.0,67150.0,0.00079752]
[1772977799586,0.19416766,67161.0,67160.0,0.00152]
[1772977799806,0.005,67160.0,67156.0,0.00152]
[1772977800010,0.005,67159.0,67156.0,0.00152]
[1772977800233,0.07445129,67158.0,67156.0,0.00152]
[1772977800449,0.19416766,67156.0,67149.0,0.00152]
[1772977800680,0.07445129,67158.0,67149.0,0.00152]
[1772977800681,0.07445129,67158.0,67149.0,0.00011925]
[1772977800907,0.19416766,67157.0,67149.0,0.00163925]
[1772977801116,0.005,67156.0,67149.0,0.00011925]
[1772977801317,0.005,67156.0,67149.0,0.00163925]
[1772977802324,0.07445461,67155.0,67149.0,0.00163925]
[1772977802490,0.07445461,67155.0,67149.0,0.07610049]
[1772977803104,0.07444597,67163.0,67149.0,0.07610049]
[1772977803303,0.07893805,67172.0,67152.0,0.19556974]
[1772977803618,0.07893805,67172.0,67157.0,0.00464478]
[1772977803820,0.07893805,67172.0,67158.0,0.00616478]
[1772977804366,0.0004,67175.0,67161.0,0.00492203]
[1772977804565,0.0004,67175.0,67165.0,0.00492203]
[1772977804739,0.0004,67175.0,67167.0,0.19605068]
[1772977805550,0.0004,67175.0,67166.0,0.00152]
[1772977806131,0.07483262,67175.0,67160.0,0.17802504]
[1772977806369,0.005,67170.0,67161.0,0.00152]
[1772977806540,0.005,67168.0,67158.0,0.07445115]
[1772977806740,0.07443577,67172.0,67159.0,0.01693419]
[1772977807183,0.0748326,67175.0,67160.0,0.19605068]
[1772977807390,0.0748326,67175.0,67163.0,0.01541419]
[1772977808398,0.0748326,67175.0,67164.0,0.07444464]
[1772977808599,0.0748326,67175.0,67165.0,0.01693419]
[1772977811657,0.0748326,67175.0,67165.0,0.07596341]
[1772977812106,0.0748326,67175.0,67166.0,0.01541419]
[1772977813262,0.07505261,67175.0,67166.0,0.01541419]
[1772977813464,0.19813746,67174.0,67153.0,0.01541419]
[1772977813670,0.19813746,67174.0,67156.0,0.00172]
[1772977813890,0.19813746,67174.0,67156.0,0.07617326]
[1772977813891,0.19661746,67174.0,67156.0,0.07617326]
[1772977814095,0.07505261,67175.0,67158.0,0.01541419]
[1772977814306,0.07505261,67175.0,67157.0,0.00152]
[1772977814307,0.19661746,67174.0,67157.0,0.00152]
[1772977814953,0.19813746,67174.0,67157.0,0.01693419]
[1772977815234,0.07443466,67173.0,67159.0,0.01541419]
[1772977815418,0.07443466,67173.0,67160.0,0.01693419]
[1772977815834,0.19661746,67172.0,67151.0,0.00152]
[1772977816493,0.19661746,67172.0,67152.0,0.00152]
[1772977816941,0.19661746,67172.0,67145.0,0.00152]
[1772977817116,0.19661746,67170.0,67143.0,0.0002946]
[1772977817268,0.19661746,67168.0,67143.0,0.0002946]
[1772977817464,0.19661746,67166.0,67143.0,0.0002946]
[1772977817663,0.19661746,67166.0,67142.0,0.0002]
[1772977817873,0.19661746,67166.0,67143.0,0.00152]
[1772977818793,0.19661746,67166.0,67130.0,0.0002]
[1772977819095,0.00152,67167.0,67130.0,0.0002]
[1772977819096,0.19813746,67165.0,67137.0,0.01541419]
[1772977819496,0.19813746,67165.0,67138.0,0.07447347]
[1772977819497,0.19661746,67163.0,67138.0,0.07447347]
[1772977819721,0.07444464,67164.0,67138.0,0.07447347]
[1772977819902,0.19661746,67163.0,67137.0,0.08988826]
[1772977820097,0.19661746,67161.0,67137.0,0.08988826]
[1772977820627,0.00152,67160.0,67137.0,0.08988826]
[1772977820825,0.19661746,67159.0,67137.0,0.08988826]
[1772977821189,0.19661746,67159.0,67138.0,0.01541419]
[1772977821599,0.19661746,67157.0,67139.0,0.08988655]
[1772977821798,0.19661746,67157.0,67139.0,0.01541419]
[1772977822205,0.19661746,67157.0,67141.0,0.01541419]
[1772977822614,0.19661746,67155.0,67140.0,0.00152]
[1772977823515,0.07445572,67154.0,67140.0,0.01693419]
[1772977823854,0.19661746,67153.0,67140.0,0.00152]
[1772977824156,0.19661746,67153.0,67140.0,0.0759909]
[1772977825465,0.19661746,67153.0,67140.0,0.00152]
[1772977825656,0.07445794,67152.0,67140.0,0.00152]
[1772977825838,0.19661746,67151.0,67138.0,0.00172]
[1772977826216,0.00152,67150.0,67138.0,0.0002]
[1772977826420,0.19661746,67149.0,67137.0,0.00152]
[1772977826623,0.19661746,67149.0,67131.0,0.0002]
[1772977827025,0.00152,67148.0,67132.0,0.00770709]
[1772977827238,0.19661746,67147.0,67132.0,0.00770709]
[1772977827839,0.27108205,67146.0,67133.0,0.07447901]
[1772977828410,0.07446459,67146.0,67133.0,0.07447901]
[1772977828565,0.07446459,67146.0,67133.0,0.0821861]
[1772977829251,0.07446459,67146.0,67133.0,0.07447901]
[1772977829439,0.07446459,67146.0,67134.0,0.00770709]
[1772977829841,0.07446459,67146.0,67131.0,0.07468098]
[1772977830192,0.19661746,67145.0,67131.0,0.08238807]
[1772977830756,0.19661746,67145.0,67132.0,0.00770709]
[1772977830965,0.07446459,67146.0,67132.0,0.00770709]
[1772977831164,0.19661746,67145.0,67132.0,0.00770709]
[1772977831580,0.07446459,67146.0,67132.0,0.00770709]
[1772977831990,0.07446459,67146.0,67132.0,0.07467926]
[1772977832191,0.07446459,67146.0,67133.0,0.00770709]
[1772977833402,0.07446459,67146.0,67132.0,0.07468006]
[1772977833403,0.18387896,67145.0,67132.0,0.0002]
[1772977833581,0.18387896,67145.0,67132.0,0.07468005]
[1772977834184,0.25834577,67144.0,67132.0,0.0002]
[1772977836671,0.18387896,67143.0,67132.0,0.0002]
[1772977837103,0.18387896,67143.0,67128.0,0.0004657]
[1772977837976,0.07446681,67145.0,67129.0,0.00770709]
[1772977839013,0.07546681,67145.0,67129.0,0.07448247]
[1772977839242,0.07546681,67145.0,67130.0,0.00770709]
[1772977839642,0.18387896,67144.0,67130.0,0.00770709]
[1772977839848,0.07546681,67145.0,67130.0,0.00770709]
[1772977840968,0.18387896,67144.0,67130.0,0.00770709]
[1772977841327,0.07446792,67143.0,67131.0,0.00770709]
[1772977843272,0.07446792,67145.0,67133.0,0.00770709]
[1772977843472,0.00152,67148.0,67135.0,0.00770709]
[1772977843684,0.00152,67147.0,67135.0,0.00770709]
[1772977844387,0.18387896,67146.0,67134.0,0.0759979]
[1772977844519,0.18387896,67146.0,67134.0,0.00152]
[1772977845414,0.18387896,67144.0,67134.0,0.00152]
[1772977845624,0.18387896,67144.0,67129.0,0.0002]
[1772977846644,0.18387896,67144.0,67130.0,0.00770709]
[1772977846854,0.00152,67143.0,67130.0,0.00770709]
[1772977847678,0.07446903,67142.0,67131.0,0.00152]
[1772977848091,0.07446903,67142.0,67131.0,0.00922709]
[1772977849643,0.07446903,67142.0,67132.0,0.07448012]
[1772977849851,0.07446903,67142.0,67131.0,0.00922709]
[1772977850044,0.0762074,67144.0,67133.0,0.00770709]
[1772977852517,0.0762074,67144.0,67133.0,0.0821861]
[1772977852919,0.0762074,67144.0,67125.0,0.00212]
[1772977852920,0.18387896,67141.0,67125.0,0.00212]
[1772977853122,0.18617186,67139.0,67126.0,0.08511296]
[1772977853345,0.18617186,67139.0,67126.0,0.01062631]
[1772977853346,0.00152,67138.0,67126.0,0.01062631]
[1772977853925,0.07447458,67137.0,67126.0,0.0851129]
[1772977854125,0.07447458,67137.0,67126.0,0.01062631]
[1772977854938,0.07447458,67137.0,67126.0,0.0851129]
[1772977855739,0.07447458,67137.0,67126.0,0.01062631]
[1772977855942,0.07447458,67137.0,67126.0,0.08511304]
[1772977856634,0.07447458,67137.0,67126.0,0.01082631]
[1772977857289,0.07447458,67137.0,67126.0,0.08531257]
[1772977857508,0.07447458,67137.0,67126.0,0.09028057]
[1772977858562,0.07447458,67137.0,67126.0,0.01579431]
[1772977858767,0.07447458,67137.0,67126.0,0.09028086]
[1772977859843,0.07447458,67137.0,67126.0,0.09028102]
[1772977860271,0.07447458,67137.0,67126.0,0.01579431]
[1772977860681,0.07447458,67137.0,67126.0,0.09028099]
[1772977861302,0.07447458,67137.0,67126.0,0.09028048]
[1772977862161,0.07447458,67137.0,67126.0,0.01579431]
[1772977862503,0.07447458,67137.0,67126.0,0.09028099]
[1772977862709,0.07447458,67137.0,67126.0,0.01579431]
[1772977864334,0.07447458,67137.0,67126.0,0.09028104]
[1772977865178,0.07447458,67137.0,67126.0,0.01579431]
[1772977866192,0.07447458,67137.0,67126.0,0.01082631]
[1772977866394,0.1861839,67136.0,67126.0,0.01082631]
[1772977866759,0.0022929,67135.0,67115.0,0.00474088]
[1772977866964,0.07447458,67137.0,67115.0,0.00474088]
[1772977866965,0.1861839,67134.0,67117.0,0.00454088]
[1772977867191,0.00152,67133.0,67117.0,0.00454088]
[1772977867781,0.00152,67133.0,67118.0,0.00454088]
[1772977868135,0.00152,67133.0,67117.0,0.00152]
[1772977868136,0.00457982,67132.0,67117.0,0.00152]
[1772977868443,0.07448123,67131.0,67118.0,0.00454088]
[1772977868799,0.1861839,67129.0,67110.0,1e-08]
[1772977868993,0.07448123,67131.0,67110.0,1e-08]
[1772977868994,0.00450818,67126.0,67110.0,1e-08]
[1772977869189,0.1861839,67123.0,67108.0,1e-08]
[1772977869405,0.1861839,67119.0,67103.0,0.00152]
[1772977869599,0.1861839,67116.0,67103.0,0.00152]
[1772977869800,0.00450818,67115.0,67101.0,0.0002]
[1772977870095,0.00450818,67113.0,67101.0,0.0002]
[1772977870311,0.07448123,67131.0,67101.0,0.0002]
[1772977870312,0.00450818,67124.0,67103.0,0.17985096]
[1772977870515,0.00450818,67124.0,67108.0,0.17985096]
[1772977870516,0.07449011,67123.0,67108.0,0.17985096]
[1772977870687,0.07449011,67123.0,67111.0,0.00457298]
[1772977870864,0.07449011,67123.0,67112.0,0.00457298]
[1772977871632,0.07448512,67128.0,67114.0,0.00457298]
[1772977871851,0.07448115,67132.0,67116.0,0.00457298]
[1772977872059,0.07448115,67132.0,67118.0,0.17985096]
[1772977872289,0.07448115,67132.0,67119.0,0.00457298]
[1772977872649,0.07448115,67132.0,67121.0,0.00457298]
[1772977874221,0.00575,67133.0,67121.0,0.00457298]
[1772977874426,0.08022913,67133.0,67121.0,0.00457298]
[1772977874835,0.08022913,67133.0,67122.0,0.0790642]
[1772977876012,0.07447014,67141.0,67123.0,0.00457298]
[1772977876214,0.07446509,67146.0,67125.0,0.00457298]
[1772977876386,0.07446509,67146.0,67128.0,0.17985096]
[1772977876387,0.07446516,67146.0,67128.0,0.17985096]
[1772977876527,0.07446516,67146.0,67131.0,0.00457298]
[1772977876735,0.07446619,67145.0,67134.0,0.0744779]
[1772977876939,0.07446432,67147.0,67135.0,0.00457298]
[1772977877143,0.07446525,67146.0,67135.0,0.00457298]
[1772977877378,0.07468691,67144.0,67135.0,0.00457298]
[1772977878745,0.07468691,67144.0,67136.0,0.07447569]
[1772977879815,0.00022001,67142.0,67136.0,0.07447569]
[1772977881421,0.00015,67140.0,67136.0,0.07447569]
[1772977882293,0.07536328,67148.0,67137.0,0.17985096]
[1772977882499,0.00022001,67151.0,67140.0,0.17985096]
[1772977882704,0.07467352,67156.0,67144.0,0.17985096]
[1772977882819,0.07467352,67156.0,67145.0,0.00457298]
[1772977883473,0.00022001,67158.0,67146.0,0.07446459]
[1772977883798,0.00022001,67158.0,67148.0,0.00457298]
[1772977885603,0.00022001,67158.0,67149.0,0.07903425]
[1772977885917,0.08019926,67160.0,67151.0,0.00457298]
[1772977885918,0.00575,67160.0,67151.0,0.00457298]
[1772977886125,0.07466611,67163.0,67153.0,0.00457298]
[1772977886533,0.00022001,67163.0,67153.0,0.00457298]
[1772977886732,0.00022001,67163.0,67153.0,0.17985096]
[1772977886905,0.00022001,67163.0,67155.0,0.00457298]
[1772977887080,0.00022001,67158.0,67157.0,0.00457298]
[1772977887295,0.00022001,67163.0,67157.0,0.00457298]
[1772977887691,0.00022001,67163.0,67159.0,0.00457298]
[1772977887905,0.07443532,67173.0,67160.0,0.00457298]
[1772977888115,0.00022001,67172.0,67160.0,0.00457298]
[1772977888315,0.00022001,67172.0,67161.0,0.00457298]
[1772977888513,0.00022001,67172.0,67160.0,0.17985096]
[1772977888514,0.00022001,67172.0,67163.0,0.00457298]
[1772977888716,0.07483466,67175.0,67163.0,0.00457298]
[1772977889175,0.07443245,67177.0,67163.0,0.00457298]
[1772977889399,0.07443245,67177.0,67165.0,0.17985096]
[1772977889576,0.00039777,67177.0,67166.0,0.17985096]
[1772977889727,0.00039777,67177.0,67169.0,0.00457298]
[1772977889965,0.00039777,67177.0,67169.0,0.00609298]
[1772977890618,0.00039777,67177.0,67170.0,0.00457298]
[1772977891622,0.00039777,67177.0,67171.0,0.07443688]
[1772977891860,0.07482807,67177.0,67148.0,0.07446232]
[1772977892021,0.00450818,67173.0,67151.0,0.07597905]
[1772977892223,0.00450818,67173.0,67147.0,0.17985096]
[1772977892224,0.00450818,67169.0,67137.0,0.07447381]
[1772977892531,0.18280959,67164.0,67139.0,0.00457298]
[1772977892725,0.18280959,67164.0,67137.0,0.07447381]
[1772977892726,0.0004,67175.0,67140.0,1.21001]
[1772977893012,0.0004,67175.0,67146.0,0.00457298]
[1772977893239,0.0004,67175.0,67149.0,0.18180397]
[1772977893494,0.00450818,67174.0,67152.0,0.00457298]
[1772977893737,0.00450818,67174.0,67154.0,0.00457298]
[1772977893988,0.07443466,67173.0,67158.0,0.00457298]
[1772977894219,0.07443466,67173.0,67160.0,0.00457298]
[1772977894908,0.07443429,67174.0,67162.0,0.00457298]
[1772977895412,0.07483306,67175.0,67163.0,0.18180397]
[1772977895605,0.07483306,67175.0,67164.0,0.00457298]
[1772977895768,0.07483306,67175.0,67166.0,0.0790154]
[1772977896401,0.07483306,67175.0,67166.0,0.00457298]
[1772977896604,0.07483306,67175.0,67165.0,0.07596347]
[1772977898005,0.07403306,67175.0,67165.0,0.07596347]
[1772977898760,0.07403306,67175.0,67165.0,0.00152]
[1772977898867,0.00468316,67170.0,67160.0,0.00152]
[1772977899070,0.18280959,67170.0,67160.0,0.00152]
[1772977899318,0.18749275,67170.0,67160.0,0.00152]
[1772977899520,0.00468316,67170.0,67160.0,0.00152]
[1772977900605,0.0744391,67169.0,67160.0,0.00137]
[1772977900984,0.00468316,67167.0,67152.0,0.07445749]
[1772977901337,0.0744391,67169.0,67150.0,0.07637909]
[1772977901338,0.00468316,67163.0,67150.0,0.07637909]
[1772977901620,0.00468316,67162.0,67150.0,0.00192]
[1772977901823,0.18280959,67162.0,67150.0,0.07638004]
[1772977902045,0.00148,67167.0,67152.0,0.00498556]
[1772977902175,0.0744391,67169.0,67154.0,0.00498556]
[1772977902598,0.07443697,67171.0,67156.0,0.00498556]
[1772977902845,0.07443697,67171.0,67158.0,0.00498556]
[1772977903046,0.26214537,67175.0,67160.0,0.00498556]
[1772977903047,0.07443417,67174.0,67160.0,0.00498556]
[1772977903246,0.07443417,67174.0,67162.0,0.00498556]
[1772977903447,0.07443417,67174.0,67164.0,0.00498556]
[1772977903603,0.07465315,67175.0,67164.0,0.00498556]
[1772977904431,0.07465247,67175.0,67164.0,0.00498556]
[1772977904623,0.07465262,67175.0,67165.0,0.07444353]
[1772977904822,0.07465262,67175.0,67166.0,0.00498556]
[1772977905028,0.07465262,67175.0,67165.0,0.07444353]
[1772977905029,0.07504804,67177.0,67168.0,0.00498556]
[1772977905232,0.07504804,67177.0,67170.0,0.00498556]
[1772977906161,0.07442909,67180.0,67170.0,0.00498556]
[1772977906348,0.0745483,67180.0,67170.0,0.00498556]
[1772977906858,0.00468316,67178.0,67169.0,0.00152]
[1772977907072,0.00468316,67178.0,67169.0,0.07595901]
[1772977907212,0.0745483,67180.0,67169.0,0.07595901]
[1772977908465,0.07442463,67183.0,67170.0,0.18180397]
[1772977908686,0.07442463,67183.0,67171.0,0.00498556]
[1772977908876,0.07442463,67183.0,67172.0,0.07443577]
[1772977909076,0.07442463,67183.0,67173.0,0.00498556]
[1772977909575,0.00022001,67180.0,67173.0,0.00498556]
[1772977909984,0.074637,67189.0,67173.0,0.00498556]
[1772977910188,0.00022001,67194.0,67172.0,0.07443577]
[1772977910189,0.07463202,67194.0,67176.0,0.18180397]
[1772977910392,0.07463202,67194.0,67172.0,0.07443577]
[1772977910393,0.00022001,67194.0,67180.0,0.18180397]
[1772977910541,0.00022001,67194.0,67183.0,0.00498556]
[1772977910748,0.0746325,67194.0,67185.0,0.00498556]
[1772977910989,0.0746325,67194.0,67186.0,0.07594026]
[1772977910990,0.00022001,67194.0,67186.0,0.07594026]
[1772977912298,0.00022001,67194.0,67187.0,0.00498556]
[1772977912720,0.25841496,67200.0,67187.0,0.00498556]
[1772977912721,0.0012,67200.0,67187.0,0.00498556]
[1772977912875,0.00468316,67205.0,67189.0,0.0794025]
[1772977913080,0.00468316,67204.0,67189.0,0.0794025]
[1772977913276,0.0001992,67208.0,67193.0,0.18180397]
[1772977913476,0.0001992,67208.0,67194.0,0.00498556]
[1772977914080,0.0001992,67208.0,67195.0,0.00498556]
[1772977914308,0.0001992,67208.0,67197.0,0.00498556]
[1772977914510,0.0090069,67210.0,67197.0,0.00498556]
[1772977914710,0.0090069,67210.0,67199.0,0.00498556]
[1772977914912,0.07438382,67219.0,67196.0,0.07440808]
[1772977914913,0.00148,67216.0,67196.0,0.07440808]
[1772977915151,0.18280959,67213.0,67197.0,0.00650556]
[1772977915297,0.00011912,67216.0,67198.0,0.00498556]
[1772977915502,0.00159912,67216.0,67198.0,0.00498556]
[1772977915928,0.18280959,67215.0,67198.0,0.00498556]
[1772977916143,0.00468316,67212.0,67196.0,0.07540808]
[1772977916296,0.18280959,67209.0,67196.0,0.07540808]
[1772977916505,0.00468316,67208.0,67189.0,0.07441667]
[1772977916784,0.00468316,67204.0,67190.0,0.00152]
[1772977916932,0.07440254,67202.0,67191.0,0.00152]
[1772977917342,0.07440254,67202.0,67189.0,0.07940223]
[1772977917512,0.07440254,67202.0,67192.0,0.00152]
[1772977917913,0.07440254,67202.0,67198.0,0.001]
[1772977918349,0.07440254,67202.0,67192.0,0.00152]
[1772977918730,0.18749275,67201.0,67191.0,0.00152]
[1772977918926,0.18749275,67201.0,67187.0,0.08016866]
[1772977918927,0.18280959,67196.0,67185.0,0.00152]
[1772977919128,0.00468316,67193.0,67184.0,0.00152]
[1772977919463,0.00468316,67193.0,67183.0,0.07442346]
[1772977920508,0.00468316,67193.0,67183.0,0.07427346]
[1772977920866,0.00468316,67193.0,67184.0,0.00152]
[1772977921288,0.07441362,67192.0,67184.0,0.00152]
[1772977922431,0.07441362,67192.0,67176.0,0.00498556]
[1772977922432,0.07441362,67192.0,67176.0,0.07941649]
[1772977922545,0.19088384,67189.0,67178.0,0.00152]
[1772977922751,0.00468316,67186.0,67175.0,0.0004]
[1772977922955,0.07589362,67192.0,67174.0,0.00152]
[1772977922956,0.19088384,67183.0,67174.0,0.00152]
[1772977923182,0.0744258,67181.0,67174.0,0.00011921]
[1772977923856,0.2699928,67181.0,67174.0,0.00011921]
[1772977924100,0.0744258,67181.0,67174.0,0.00011921]
[1772977925355,0.0744258,67183.0,67174.0,0.00011921]
[1772977925795,0.07939047,67183.0,67174.0,0.00011921]
[1772977926419,0.0744258,67183.0,67174.0,0.00011921]
[1772977926595,0.07939047,67183.0,67174.0,0.00011921]
[1772977926797,0.00496467,67181.0,67174.0,0.00011921]
[1772977927003,0.2001186,67181.0,67174.0,0.00011921]
[1772977927409,0.07442691,67180.0,67174.0,0.00011921]
[1772977927815,0.07442691,67180.0,67172.0,0.00152]
[1772977927816,0.00496467,67179.0,67172.0,0.00152]
[1772977928138,0.0050837,67179.0,67172.0,0.00152]
[1772977928316,0.0050837,67179.0,67171.0,0.00152]
[1772977928727,0.0050837,67179.0,67168.0,0.07443987]
[1772977928932,0.0050837,67179.0,67169.0,0.00152]
[1772977929709,0.07442912,67178.0,67168.0,0.07443987]
[1772977929907,0.07442912,67178.0,67169.0,0.00152]
[1772977930561,0.57442912,67178.0,67170.0,0.00489733]
[1772977931461,0.57442912,67178.0,67169.0,0.00172]
[1772977931755,0.57442912,67178.0,67170.0,0.00152]
[1772977932256,0.57442912,67178.0,67171.0,0.00152]
[1772977932475,0.57442912,67178.0,67170.0,0.00152]
[1772977933628,0.57442912,67178.0,67171.0,0.00489733]
[1772977933854,0.57442912,67178.0,67170.0,0.00152]
[1772977934078,0.57442912,67178.0,67169.0,0.0002]
[1772977934281,0.57442912,67178.0,67170.0,0.00152]
[1772977934679,0.57442912,67178.0,67171.0,0.00152]
[1772977934901,0.0047757,67177.0,67169.0,0.0002]
[1772977935099,0.57442912,67178.0,67169.0,0.0002]
[1772977935100,0.19992963,67176.0,67169.0,0.0002]
[1772977935310,0.57442912,67178.0,67169.0,0.00172]
[1772977935543,0.0047757,67176.0,67169.0,0.00172]
[1772977935714,0.0047757,67176.0,67165.0,0.00152]
[1772977935895,0.57442912,67178.0,67165.0,0.00152]
[1772977936719,0.58072482,67178.0,67165.0,0.00152]
[1772977937292,0.57920482,67178.0,67165.0,0.07596257]
[1772977937491,0.57920482,67178.0,67166.0,0.00489733]
[1772977938119,0.57920482,67178.0,67165.0,0.00152]
[1772977939134,0.0047757,67177.0,67165.0,0.00152]
[1772977939441,0.0047757,67177.0,67165.0,0.00172]
[1772977939796,0.19515393,67176.0,67165.0,0.00172]
[1772977940024,0.0047757,67175.0,67165.0,0.00172]
[1772977940528,0.19515393,67174.0,67165.0,0.00172]
[1772977940826,0.57442912,67178.0,67165.0,0.00172]
[1772977940827,0.07443245,67175.0,67165.0,0.00172]
[1772977941033,0.07443245,67175.0,67165.0,0.07616336]
[1772977941960,0.0047757,67174.0,67165.0,0.00172]